fUSD/lending_fUSD_20260626
["ID","MTS","AMOUNT","RATE_DAILY","PERIOD"]
[426493969,1782472234000,-250.0,0.00014237,2]
[426493973,1782472234000,-30.96396171,0.0001428,2]
[426493981,1782472234000,-408.6925,0.000148,2]
[426493993,1782472234000,-152.0,0.000149,2]
[426493989,1782472234000,-1474.9609,0.000149,2]
[426494003,1782472234000,-341.26214205,0.00014999,2]
[426494002,1782472234000,-500.0,0.00014999,2]
[426494001,1782472234000,-150.0,0.00014999,2]
[426493998,1782472234000,-150.0,0.00014986,2]
[426494000,1782472234000,-150.3383746,0.00014999,2]
[426493997,1782472234000,-293.30864641,0.0001496,2]
[426493996,1782472234000,-300.0,0.00014901,2]
[426493999,1782472234000,-500.0,0.00014999,2]
[426493995,1782472234000,-783.32004159,0.000149,2]
[426493994,1782472234000,-248.0,0.000149,2]
[426493988,1782472234000,-6126.2233,0.000149,2]
[426493984,1782472234000,-13941.9404,0.00014899,2]
[426493990,1782472234000,-2806.23548721,0.000149,2]
[426493985,1782472234000,-150.0,0.00014899,2]
[426493986,1782472234000,-5878.7923,0.000149,2]
[426493992,1782472234000,-230.28383814,0.000149,2]
[426494023,1782472235000,-156.65623223,0.00014999,2]
[426494024,1782472235000,-500.0,0.00014999,2]
[426494022,1782472235000,-1074.80797981,0.00014999,5]
[426494018,1782472235000,-327.29255984,0.00014999,2]
[426494017,1782472235000,-500.0,0.00014999,2]
[426494021,1782472235000,-1074.80797981,0.00014999,5]
[426494026,1782472235000,-152.0,0.00014999,2]
[426494036,1782472235000,-296.0,0.00014999,2]
[426494015,1782472235000,-300.0,0.00014999,2]
[426494020,1782472235000,-1074.80797981,0.00014999,5]
[426494019,1782472235000,-500.0,0.00014999,2]
[426494009,1782472235000,-500.0,0.00014999,2]
[426494014,1782472235000,-500.0,0.00014999,2]
[426494010,1782472235000,-500.0,0.00014999,2]
[426494008,1782472235000,-500.0,0.00014999,2]
[426494006,1782472235000,-351.06947306,0.00014999,2]
[426494012,1782472235000,-500.0,0.00014999,2]
[426494025,1782472235000,-1404.76348818,0.00014999,2]
[426494011,1782472235000,-500.0,0.00014999,2]
[426494007,1782472235000,-500.0,0.00014999,2]
[426494005,1782472235000,-233.88322029,0.00014999,2]
[426494004,1782472235000,-500.0,0.00014999,2]
[426494016,1782472235000,-600.73646743,0.00014999,2]
[426494029,1782472235000,-500.0,0.00014999,2]
[426494013,1782472235000,-543.75333512,0.00014999,2]
[426494030,1782472235000,-500.0,0.00014999,2]
[426494052,1782472235000,-788.9667625,0.00015,2]
[426494051,1782472235000,-1254.41808677,0.00015,2]
[426494054,1782472235000,-906.42945608,0.00015,2]
[426494053,1782472235000,-858.73471216,0.00015,2]
[426494050,1782472235000,-18538.10298364,0.00015,2]
[426494048,1782472235000,-21946.16727484,0.00015,2]
[426494049,1782472235000,-18274.87622812,0.00015,2]
[426494046,1782472235000,-74150.91901922,0.00015,2]
[426494042,1782472235000,-500.0,0.00014999,2]
[426494047,1782472235000,-157545.13874391,0.00015,2]
[426494043,1782472235000,-666.0,0.00014999,2]
[426494027,1782472235000,-248.0,0.00014999,2]
[426494038,1782472235000,-152.0,0.00014999,2]
[426494045,1782472235000,-666.0,0.00014999,2]
[426494041,1782472235000,-248.0,0.00014999,2]
[426494040,1782472235000,-152.0,0.00014999,2]
[426494039,1782472235000,-296.0,0.00014999,2]
[426494037,1782472235000,-152.0,0.00014999,2]
[426494033,1782472235000,-557.69,0.00014999,2]
[426494034,1782472235000,-152.0,0.00014999,2]
[426494035,1782472235000,-152.0,0.00014999,2]
[426494028,1782472235000,-500.0,0.00014999,2]
[426494032,1782472235000,-500.0,0.00014999,2]
[426494031,1782472235000,-500.0,0.00014999,2]
[426494044,1782472235000,-300.0,0.00014999,2]
[426494065,1782472238000,-152.0,0.000149,2]
[426494068,1782472238000,-1609.50670442,0.00015,2]
[426494067,1782472238000,-4097.18037145,0.00015,2]
[426494066,1782472238000,-248.0,0.000149,2]
[426494102,1782472251000,-1673.46028244,0.00015,2]
[426494100,1782472251000,-950.85860558,0.00015,2]
[426494101,1782472251000,-516.8626531,0.00015,2]
[426494099,1782472251000,-338.61408959,0.00015,2]
[426494098,1782472251000,-164.22191773,0.000149,2]
[426494104,1782472252000,-1565.05,0.00015,2]
[426494105,1782472252000,-159981.37018263,0.00015,2]
[426494103,1782472252000,-12184.33072776,0.00015,2]
[426494106,1782472304000,-3203.92936335,0.000149,2]
[426494107,1782472317000,-3203.92936335,0.000149,2]
[426494108,1782472329000,-459.4175733,0.000149,2]
[426494109,1782472382000,-427.26014347,0.000149,2]
[426494110,1782472384000,985.833642,0.00037224,120]
[426494113,1782472435000,-941.943,0.000147,2]
[426494114,1782472489000,-288.71180066,0.00014893,2]
[426494115,1782472542000,-761.9150098,0.00014893,2]
[426494116,1782472596000,-151.0,0.00014624,2]
[426494117,1782472624000,766.4,0.00037225,120]
[426494119,1782472636000,2000.0,0.00037225,120]
[426494118,1782472636000,2000.0,0.00037225,120]
[426494125,1782472665000,-386.15939869,0.000149,2]
[426494120,1782472665000,-151.0,0.00014624,2]
[426494123,1782472665000,-1344.10838995,0.00014893,2]
[426494122,1782472665000,-151.0,0.00014624,2]
[426494126,1782472665000,-373.85262551,0.000149,2]
[426494121,1782472665000,-151.0,0.00014624,2]
[426494127,1782472665000,-153.52255876,0.000149,2]
[426494128,1782472665000,-160.0,0.00014911,2]
[426494130,1782472665000,-150.0,0.00014995,2]
[426494129,1782472665000,-14512.9952154,0.00014994,2]
[426494131,1782472665000,-3426.1623564,0.00014996,2]
[426494132,1782472665000,-2029.49368976,0.00014996,2]
[426494124,1782472665000,-2010.70576553,0.00014893,2]
[426494137,1782472765000,500.0,0.00037226,120]
[426494138,1782472850000,28000.0,0.00037226,120]
[426494140,1782473015000,-1623.2121,0.000149,2]
[426494145,1782473069000,-710.9554912,0.000147,2]
[426494146,1782473081000,-42.5995088,0.000147,2]
[426494147,1782473135000,-347.54345883,0.000149,2]
[426494148,1782473187000,-151.0,0.0001427,2]
[426494149,1782473241000,-151.0,0.0001427,2]
[426494150,1782473294000,-151.0,0.0001427,2]
[426494151,1782473348000,-151.0,0.0001427,2]
[426494152,1782473364000,313.28358646,0.00037227,120]
[426494153,1782473401000,-150.83,0.00014528,2]
[426494157,1782473431000,-407.68331049,0.00014868,2]
[426494158,1782473431000,-719.20168395,0.00014868,2]
[426494160,1782473431000,-6696.12032928,0.00014896,2]
[426494161,1782473431000,-376.33326758,0.00014896,2]
[426494159,1782473431000,-1075.88270656,0.00014868,2]
[426494198,1782473432000,-300.0,0.00014896,2]
[426494199,1782473432000,-152.0,0.00014896,2]
[426494197,1782473432000,-296.0,0.00014896,2]
[426494189,1782473432000,-296.0,0.00014896,2]
[426494190,1782473432000,-152.0,0.00014896,2]
[426494187,1782473432000,-152.0,0.00014896,2]
[426494186,1782473432000,-296.0,0.00014896,2]
[426494183,1782473432000,-498.2109,0.00014896,2]
[426494185,1782473432000,-152.0,0.00014896,2]
[426494179,1782473432000,-152.0,0.00014896,2]
[426494184,1782473432000,-152.0,0.00014896,2]
[426494181,1782473432000,-248.0,0.00014896,2]
[426494177,1782473432000,-39244.83390314,0.00014896,2]
[426494188,1782473432000,-152.0,0.00014896,2]
[426494201,1782473432000,-296.0,0.00014896,2]
[426494200,1782473432000,-152.0,0.00014896,2]
[426494195,1782473432000,-152.0,0.00014896,2]
[426494208,1782473432000,-200.0,0.00014959,7]
[426494206,1782473432000,-200.0,0.00014959,2]
[426494205,1782473432000,-150.83,0.0001491,2]
[426494207,1782473432000,-200.0,0.00014959,2]
[426494209,1782473432000,-23309.3955652,0.00014991,2]
[426494203,1782473432000,-312.78911301,0.000149,2]
[426494191,1782473432000,-152.0,0.00014896,2]
[426494204,1782473432000,-216.48047229,0.00014903,2]
[426494202,1782473432000,-2930.47470189,0.000149,2]
[426494192,1782473432000,-152.0,0.00014896,2]
[426494196,1782473432000,-152.0,0.00014896,2]
[426494193,1782473432000,-152.0,0.00014896,2]
[426494194,1782473432000,-292.0,0.00014896,2]
[426494210,1782473432000,-32079.13093129,0.00014996,2]
[426494212,1782473437000,866.67,0.00031062,120]
[426494219,1782473438000,-1237.5364804,0.00014996,2]
[426494217,1782473438000,866.67,0.00031309,120]
[426494221,1782473438000,-486.32502523,0.00014996,2]
[426494220,1782473438000,-3070.17217548,0.00014996,2]
[426494218,1782473438000,-3203.92936335,0.00014996,2]
[426494393,1782473440000,-645.21983587,0.000149,2]
[426494394,1782473440000,-909.88018435,0.00014996,2]
[426494408,1782473454000,-2102.16833632,0.00014996,2]
[426494419,1782473455000,-500.0,0.00014999,2]
[426494423,1782473455000,-500.0,0.00014999,2]
[426494424,1782473455000,-500.0,0.00014999,2]
[426494421,1782473455000,-500.0,0.00014999,2]
[426494426,1782473455000,-500.0,0.00014999,2]
[426494422,1782473455000,-500.0,0.00014999,2]
[426494420,1782473455000,-500.0,0.00014999,2]
[426494418,1782473455000,-500.0,0.00014999,2]
[426494411,1782473455000,-1081.30890465,0.00014996,2]
[426494417,1782473455000,-500.0,0.00014999,2]
[426494415,1782473455000,-500.0,0.00014999,2]
[426494413,1782473455000,-200.0,0.00014996,2]
[426494414,1782473455000,-1384.51342136,0.00014999,5]
[426494412,1782473455000,-147.33103274,0.00014996,2]
[426494425,1782473455000,-500.0,0.00014999,2]
[426494409,1782473455000,-7343.98566874,0.00014996,2]
[426494410,1782473455000,-5913.38507529,0.00014996,2]
[426494416,1782473455000,-500.0,0.00014999,2]
[426494427,1782473455000,-500.0,0.00014999,2]
[426494434,1782473455000,-305.80421091,0.00014999,2]
[426494432,1782473455000,-500.0,0.00014999,2]
[426494447,1782473455000,-2308.75307142,0.00015,2]
[426494445,1782473455000,-10378.37486549,0.00015,2]
[426494444,1782473455000,-302.0,0.00015,2]
[426494446,1782473455000,-3122.75,0.00015,2]
[426494443,1782473455000,-1171.79967414,0.00015,2]
[426494442,1782473455000,-684697.544849,0.00015,2]
[426494430,1782473455000,-500.0,0.00014999,2]
[426494441,1782473455000,-2565.3,0.00015,2]
[426494440,1782473455000,-4329.86327708,0.00015,2]
[426494437,1782473455000,-3075.72040505,0.00015,2]
[426494436,1782473455000,-1126.13077059,0.00015,2]
[426494428,1782473455000,-483.16773282,0.00014999,2]
[426494431,1782473455000,-500.0,0.00014999,2]
[426494429,1782473455000,-500.0,0.00014999,2]
[426494433,1782473455000,-500.0,0.00014999,2]
[426494435,1782473455000,-48327.33872348,0.00015,2]
[426494439,1782473455000,-777.8432046,0.00015,2]
[426494438,1782473455000,-12250.73344369,0.00015,2]
[426494451,1782473567000,500.0,0.00037227,120]
[426494450,1782473567000,500.0,0.00037227,120]
[426494449,1782473567000,500.0,0.00037227,120]
[426494452,1782473568000,500.0,0.00037227,120]
[426494453,1782473568000,500.0,0.00037227,120]
[426494455,1782473809000,-602.844,0.000147,2]
[426494456,1782473862000,-655.0,0.00014796,2]
[426494457,1782473915000,-2637.42723171,0.000149,2]
[426494458,1782473969000,-743.52443178,0.000149,2]
[426494459,1782473981000,-951.51780131,0.000149,2]
[426494460,1782474034000,-300.44761799,0.000145,2]
[426494461,1782474088000,-151.0,0.000149,2]
[426494462,1782474141000,-150.0,0.00014899,2]
[426494463,1782474195000,-150.0,0.000149,2]
[426494465,1782474248000,-482.275,0.000147,2]
[426494472,1782474400000,20000.0,0.00031506,120]
[426494473,1782474444000,20000.0,0.00031506,120]
[426494476,1782474632000,-150.83,0.00014863,2]
[426494477,1782474632000,-214.54137208,0.00014896,2]
[426494478,1782474632000,-289.62862792,0.00014896,2]
[426494488,1782474638000,-153.0,0.000149,2]
[426494484,1782474638000,-88.84778283,0.00014896,2]
[426494487,1782474638000,-153.0,0.000149,2]
[426494486,1782474638000,-150.0,0.000149,2]
[426494489,1782474638000,-1771.82880477,0.000149,2]
[426494485,1782474638000,-150.0,0.00014899,2]
[426494493,1782474638000,-186.9691619,0.000149,2]
[426494492,1782474638000,-497.23177807,0.000149,2]
[426494495,1782474638000,-559.7225749,0.000149,2]
[426494494,1782474638000,-2373.68450853,0.000149,2]
[426494490,1782474638000,-743.52443178,0.000149,2]
[426494491,1782474638000,-964.02828538,0.000149,2]
[426494689,1782474640000,-488.32685115,0.000149,2]
[426494674,1782474640000,-300.0,0.000149,2]
[426494955,1782474652000,-61068.74340884,0.00014995,2]
[426494966,1782474652000,-633.3,0.00014999,2]
[426494954,1782474652000,-10567.72092891,0.00014995,2]
[426494952,1782474652000,-1473.33721193,0.00014995,2]
[426494948,1782474652000,-158.7987981,0.000149,2]
[426494946,1782474652000,-224.60734172,0.000149,2]
[426494945,1782474652000,-679.0107363,0.000149,2]
[426494947,1782474652000,-564.56735643,0.000149,2]
[426494951,1782474652000,-923.25468907,0.00014995,2]
[426494953,1782474652000,-1219.19352263,0.00014995,2]
[426494950,1782474652000,-538.12899516,0.00014995,2]
[426494944,1782474652000,-177.48858374,0.000149,2]
[426494957,1782474652000,-152.0,0.00014995,2]
[426494949,1782474652000,-216.48047229,0.00014904,2]
[426494965,1782474652000,-170.5785795,0.00014999,2]
[426494967,1782474652000,-12779.4130407,0.00014999,2]
[426494961,1782474652000,-152.0,0.00014995,2]
[426494971,1782474652000,-500.0,0.00014999,2]
[426494974,1782474652000,-500.0,0.00014999,2]
[426494975,1782474652000,-500.0,0.00014999,2]
[426494972,1782474652000,-500.0,0.00014999,2]
[426494964,1782474652000,-250.31075232,0.00014999,2]
[426494970,1782474652000,-639.10479189,0.00014999,2]
[426494968,1782474652000,-3111.6292112,0.00014999,2]
[426494973,1782474652000,-500.0,0.00014999,2]
[426494959,1782474652000,-152.0,0.00014995,2]
[426494963,1782474652000,-743.52443178,0.00014999,5]
[426494960,1782474652000,-152.0,0.00014995,2]
[426494958,1782474652000,-292.0,0.00014995,2]
[426494962,1782474652000,-153.0,0.00014999,2]
[426494956,1782474652000,-8833.19414456,0.00014995,2]
[426494969,1782474652000,-500.0,0.00014999,2]
[426494980,1782474653000,-500.0,0.00014999,2]
[426494977,1782474653000,-500.0,0.00014999,2]
[426494976,1782474653000,-500.0,0.00014999,2]
[426494979,1782474653000,-500.0,0.00014999,2]
[426494978,1782474653000,-352.12954437,0.00014999,2]
[426494982,1782474653000,-500.0,0.00014999,2]
[426494985,1782474653000,-431.2693457,0.00014999,2]
[426494987,1782474653000,-256.41886519,0.00014999,2]
[426494983,1782474653000,-275.14213826,0.00014999,2]
[426494984,1782474653000,-500.0,0.00014999,2]
[426494981,1782474653000,-500.0,0.00014999,2]
[426494988,1782474653000,-213020.67505926,0.00015,2]
[426494986,1782474653000,-500.0,0.00014999,2]
[426494989,1782474706000,-151.0,0.00014205,2]
[426494990,1782474759000,-151.0,0.00014205,2]
[426494991,1782474784000,500.0,0.00037224,120]
[426494997,1782474812000,151.0,0.00037224,120]
[426494996,1782474812000,151.0,0.00037224,120]
[426494995,1782474812000,151.0,0.00037224,120]
[426494994,1782474812000,166.483048,0.00037224,120]
[426494993,1782474812000,151.0,0.00037224,120]
[426494992,1782474812000,-151.0,0.00014205,2]
[426494999,1782474813000,175.903001,0.00037224,120]
[426494998,1782474813000,151.0,0.00037224,120]
[426495001,1782474821000,176.292006,0.00037224,120]
[426495002,1782474866000,-191.96971,0.00014134,2]
[426495003,1782474875000,179.614285,0.00037224,120]
[426495006,1782474876000,179.614285,0.00037224,120]
[426495005,1782474876000,179.614285,0.00037224,120]
[426495004,1782474876000,179.614285,0.00037224,120]
[426495009,1782474877000,179.614285,0.00037224,120]
[426495008,1782474877000,151.0,0.00037224,120]
[426495007,1782474877000,179.614285,0.00037224,120]
[426495013,1782474878000,179.614285,0.00037224,120]
[426495012,1782474878000,151.0,0.00037224,120]
[426495011,1782474878000,179.614285,0.00037224,120]
[426495010,1782474878000,151.0,0.00037224,120]
[426495015,1782474879000,151.0,0.00037224,120]
[426495014,1782474879000,179.614285,0.00037224,120]
[426495017,1782474879000,151.0,0.00037224,120]
[426495016,1782474879000,179.614285,0.00037224,120]
[426495018,1782474879000,179.614285,0.00037224,120]
[426495023,1782474880000,151.0,0.00037224,120]
[426495022,1782474880000,179.614285,0.00037224,120]
[426495021,1782474880000,151.0,0.00037224,120]
[426495020,1782474880000,179.614285,0.00037224,120]
[426495019,1782474880000,151.0,0.00037224,120]
[426495028,1782474881000,179.614285,0.00037224,120]
[426495027,1782474881000,151.0,0.00037224,120]
[426495026,1782474881000,179.614285,0.00037224,120]
[426495025,1782474881000,151.0,0.00037224,120]
[426495024,1782474881000,179.614285,0.00037224,120]
[426495030,1782474882000,179.614285,0.00037224,120]
[426495029,1782474882000,151.0,0.00037224,120]
[426495032,1782474882000,179.614285,0.00037224,120]
[426495031,1782474882000,151.0,0.00037224,120]
[426495036,1782474883000,179.614281,0.00037224,120]
[426495035,1782474883000,151.0,0.00037224,120]
[426495034,1782474883000,179.614285,0.00037224,120]
[426495033,1782474883000,151.0,0.00037224,120]
[426495037,1782474883000,267.931801,0.00037224,120]
[426495038,1782474893000,154.85654,0.00037224,120]
[426495039,1782474911000,-151.0,0.00014205,2]
[426495041,1782474935000,273.691352,0.00037224,120]
[426495040,1782474935000,151.0,0.00037224,120]
[426495042,1782474943000,151.0,0.00037224,120]
[426495043,1782474944000,151.0,0.00037224,120]
[426495044,1782474964000,-2136.31605765,0.000148,2]
[426495045,1782474991000,180.185016,0.00037224,120]
[426495046,1782474991000,180.185016,0.00037224,120]
[426495048,1782474992000,180.185016,0.00037224,120]
[426495047,1782474992000,180.185016,0.00037224,120]
[426495050,1782474993000,180.185016,0.00037224,120]
[426495049,1782474993000,180.185016,0.00037224,120]
[426495052,1782474994000,180.185016,0.00037224,120]
[426495051,1782474994000,180.185016,0.00037224,120]
[426495054,1782474995000,180.185016,0.00037224,120]
[426495053,1782474995000,180.185016,0.00037224,120]
[426495056,1782474996000,180.185016,0.00037224,120]
[426495055,1782474996000,180.185016,0.00037224,120]
[426495057,1782474997000,180.185016,0.00037224,120]
[426495059,1782474997000,180.185016,0.00037224,120]
[426495058,1782474997000,180.185016,0.00037224,120]
[426495060,1782474998000,180.185016,0.00037224,120]
[426495061,1782474998000,180.185016,0.00037224,120]
[426495063,1782474999000,180.185016,0.00037224,120]
[426495062,1782474999000,180.185016,0.00037224,120]
[426495064,1782475000000,180.185024,0.00037224,120]
[426495065,1782475017000,-150.83,0.00014831,2]
[426495068,1782475037000,151.0,0.00037224,120]
[426495067,1782475037000,151.0,0.00037224,120]
[426495077,1782475071000,-500.0,0.00014899,2]
[426495078,1782475071000,5988.37149764,0.00037224,120]
[426495079,1782475124000,-152.0,0.00014899,2]
[426495081,1782475359000,5230.93420576,0.00037225,120]
[426495084,1782475511000,-1922.68445193,0.000148,2]
[426495085,1782475565000,-250.0,0.00014,2]
[426495086,1782475604000,1179.2,0.00037225,120]
[426495087,1782475618000,-2276.9899,0.000148,2]
[426495088,1782475672000,-162.54469352,0.00014896,2]
[426495090,1782475725000,-151.0,0.00013972,2]
[426495109,1782475832000,-500.0,0.00014899,2]
[426495113,1782475832000,-474.67923404,0.00014899,2]
[426495115,1782475832000,-500.0,0.00014899,2]
[426495116,1782475832000,-500.0,0.00014899,2]
[426495118,1782475832000,-500.0,0.00014899,2]
[426495117,1782475832000,-500.0,0.00014899,2]
[426495122,1782475832000,-500.0,0.00014899,2]
[426495114,1782475832000,-500.0,0.00014899,2]
[426495121,1782475832000,-500.0,0.00014899,2]
[426495125,1782475832000,-500.0,0.00014899,2]
[426495111,1782475832000,-500.0,0.00014899,2]
[426495120,1782475832000,-500.0,0.00014899,2]
[426495119,1782475832000,-500.0,0.00014899,2]
[426495108,1782475832000,-500.0,0.00014899,2]
[426495097,1782475832000,-500.0,0.00014452,2]
[426495107,1782475832000,-150.23661604,0.00014899,2]
[426495112,1782475832000,-500.0,0.00014899,2]
[426495106,1782475832000,-150.0,0.00014898,2]
[426495105,1782475832000,-669.13077432,0.00014898,2]
[426495123,1782475832000,-500.0,0.00014899,2]
[426495102,1782475832000,-6867.2763,0.000148,2]
[426495103,1782475832000,-286.74810641,0.00014896,2]
[426495101,1782475832000,-2500.0,0.000148,2]
[426495100,1782475832000,-1770.66566568,0.000148,2]
[426495099,1782475832000,-113.03845703,0.00014652,2]
[426495096,1782475832000,-151.0,0.00013972,2]
[426495094,1782475832000,-151.0,0.00013972,2]
[426495098,1782475832000,-78.93125297,0.00014652,2]
[426495095,1782475832000,-151.0,0.00013972,2]
[426495110,1782475832000,-241.14567945,0.00014899,2]
[426495127,1782475832000,-500.0,0.00014899,2]
[426495104,1782475832000,-428.95801792,0.00014896,2]
[426495139,1782475832000,-152.0,0.000149,2]
[426495129,1782475832000,-500.0,0.00014899,2]
[426495158,1782475832000,-152.0,0.000149,2]
[426495159,1782475832000,-152.0,0.000149,2]
[426495152,1782475832000,-296.0,0.000149,2]
[426495157,1782475832000,-296.0,0.000149,2]
[426495160,1782475832000,-196.0,0.000149,2]
[426495156,1782475832000,-152.0,0.000149,2]
[426495155,1782475832000,-152.0,0.000149,2]
[426495154,1782475832000,-248.0,0.000149,2]
[426495151,1782475832000,-152.0,0.000149,2]
[426495150,1782475832000,-152.0,0.000149,2]
[426495143,1782475832000,-152.0,0.000149,2]
[426495149,1782475832000,-184.0,0.000149,2]
[426495148,1782475832000,-152.0,0.000149,2]
[426495147,1782475832000,-152.0,0.000149,2]
[426495153,1782475832000,-152.0,0.000149,2]
[426495146,1782475832000,-152.0,0.000149,2]
[426495144,1782475832000,-152.0,0.000149,2]
[426495131,1782475832000,-500.0,0.00014899,2]
[426495133,1782475832000,-500.0,0.00014899,2]
[426495134,1782475832000,-500.0,0.00014899,2]
[426495137,1782475832000,-152.0,0.000149,2]
[426495136,1782475832000,-152.0,0.000149,2]
[426495140,1782475832000,-292.0,0.000149,2]
[426495132,1782475832000,-500.0,0.00014899,2]
[426495135,1782475832000,-500.0,0.00014899,2]
[426495138,1782475832000,-152.0,0.000149,2]
[426495141,1782475832000,-152.0,0.000149,2]
[426495142,1782475832000,-152.0,0.000149,2]
[426495145,1782475832000,-152.0,0.000149,2]
[426495130,1782475832000,-500.0,0.00014899,2]
[426495172,1782475833000,-152.0,0.000149,2]
[426495171,1782475833000,-152.0,0.000149,2]
[426495170,1782475833000,-296.0,0.000149,2]
[426495169,1782475833000,-152.0,0.000149,2]
[426495167,1782475833000,-1372.98420882,0.000149,2]
[426495168,1782475833000,-152.0,0.000149,2]
[426495161,1782475833000,-152.0,0.000149,2]
[426495165,1782475833000,-292.0,0.000149,2]
[426495163,1782475833000,-152.0,0.000149,2]
[426495166,1782475833000,-300.0,0.000149,2]
[426495164,1782475833000,-152.0,0.000149,2]
[426495162,1782475833000,-152.0,0.000149,2]
[426495174,1782475833000,-152.0,0.000149,2]
[426495173,1782475833000,-296.0,0.000149,2]
[426495176,1782475833000,-152.0,0.000149,2]
[426495186,1782475833000,-152.0,0.000149,2]
[426495178,1782475833000,-292.0,0.000149,2]
[426495182,1782475833000,-567.81574328,0.000149,2]
[426495191,1782475833000,-3156.3622742,0.00014994,2]
[426495192,1782475833000,-1831.57311443,0.00014994,2]
[426495188,1782475833000,-3322.3137282,0.0001499,2]
[426495190,1782475833000,-2102.1683365,0.00014991,2]
[426495187,1782475833000,-292.0,0.000149,2]
[426495183,1782475833000,-152.0,0.000149,2]
[426495189,1782475833000,-13020.0402142,0.00014991,2]
[426495175,1782475833000,-152.0,0.000149,2]
[426495177,1782475833000,-152.0,0.000149,2]
[426495179,1782475833000,-152.0,0.000149,2]
[426495181,1782475833000,-296.0,0.000149,2]
[426495185,1782475833000,-152.0,0.000149,2]
[426495180,1782475833000,-152.0,0.000149,2]
[426495184,1782475833000,-152.0,0.000149,2]
[426495202,1782475838000,-13155.60958497,0.00014994,2]
[426495201,1782475838000,-655.0,0.000148,2]
[426495205,1782475838000,-1074.80797981,0.00014999,5]
[426495204,1782475838000,-179.49320563,0.00014999,2]
[426495203,1782475838000,-4997.6035312,0.00014998,2]
[426495211,1782475838000,-1395.09545077,0.00015,2]
[426495207,1782475838000,-3341.69911572,0.00015,2]
[426495209,1782475838000,-11207.62453301,0.00015,2]
[426495208,1782475838000,-448.30419999,0.00015,2]
[426495210,1782475838000,-35712.99426079,0.00015,2]
[426495206,1782475838000,-8193.8836043,0.00015,2]
[426495233,1782475840000,-1322.91230409,0.00015,2]
[426495232,1782475840000,-702.68191413,0.00015,2]
[426495230,1782475840000,-411.15336399,0.00015,2]
[426495231,1782475840000,-2791.12071158,0.00015,2]
[426495257,1782475850000,-720.84570248,0.00015,2]
[426495258,1782475850000,-793.54727005,0.00015,2]
[426495259,1782475850000,-1277.61,0.00015,2]
[426495263,1782475851000,-674.0,0.00015,2]
[426495262,1782475851000,-3942.67550672,0.00015,2]
[426495261,1782475851000,-491.06439782,0.00015,2]
[426495260,1782475851000,-519629.09388041,0.00015,2]
[426495274,1782476385000,249.76893425,0.00037224,120]
[426495277,1782476635000,992.80625845,0.00037226,120]
[426495278,1782476944000,191.91103592,0.0001,2]
[426495279,1782476945000,338.55381531,0.0001,2]
[426495280,1782476946000,506.45626013,0.0001,2]
[426495290,1782477031000,-166.66,0.00013024,2]
[426495289,1782477031000,-166.66,0.00012755,2]
[426495291,1782477031000,-165.57387459,0.00013292,2]
[426495294,1782477031000,-408.22449544,0.00013398,2]
[426495293,1782477031000,-203.92724228,0.00013388,2]